[Event "*** Titled Tuesday Blitz"]
[Site "Chess.com"]
[Date "2020.11.24"]
[Round "3"]
[White "Qvalda"]
[Black "klimkoj"]
[Result "0-1"]
[WhiteElo "2421"]
[BlackElo "2617"]
[TimeControl "180+1"]
[EndTime "10:44:23 PST"]
[Termination "klimkoj won by resignation"]

1. e4 {[%clk 0:02:57.2]} 1... c5 {[%clk 0:02:58.2]} 2. a3 {[%clk 0:02:55.1]}
2... e5 {[%clk 0:02:50.9]} 3. b4 {[%clk 0:02:53.6]} 3... cxb4 {[%clk 0:02:51]}
4. axb4 {[%clk 0:02:54.5]} 4... Bxb4 {[%clk 0:02:51.6]} 5. c3 {[%clk 0:02:55]}
5... Be7 {[%clk 0:02:51.6]} 6. d4 {[%clk 0:02:55.6]} 6... d5 {[%clk 0:02:51.2]}
7. dxe5 {[%clk 0:02:53.9]} 7... dxe4 {[%clk 0:02:51.7]} 8. Qa4+ {[%clk
0:02:48.9]} 8... Nc6 {[%clk 0:02:45.8]} 9. Qxe4 {[%clk 0:02:48.5]} 9... Be6
{[%clk 0:02:25.3]} 10. Nf3 {[%clk 0:02:39.2]} 10... Qd5 {[%clk 0:02:21.9]} 11.
Bd3 {[%clk 0:02:34.5]} 11... O-O-O {[%clk 0:02:13.8]} 12. Bc2 {[%clk 0:02:32.8]}
12... Bc5 {[%clk 0:02:00.8]} 13. O-O {[%clk 0:02:29.9]} 13... Nge7 {[%clk
0:02:00.8]} 14. Ba3 {[%clk 0:02:25.3]} 14... Bxa3 {[%clk 0:01:54.2]} 15. Nxa3
{[%clk 0:02:26.2]} 15... Qc5 {[%clk 0:01:43.7]} 16. Qa4 {[%clk 0:02:19.8]} 16...
a6 {[%clk 0:01:33.7]} 17. Be4 {[%clk 0:02:01.7]} 17... Nd5 {[%clk 0:01:24.6]}
18. Bxd5 {[%clk 0:01:47.7]} 18... Bxd5 {[%clk 0:01:25.5]} 19. Nd4 {[%clk
0:01:48]} 19... Nxe5 {[%clk 0:01:18.2]} 20. Rfd1 {[%clk 0:01:10.1]} 20... Rhe8
{[%clk 0:01:04]} 21. c4 {[%clk 0:01:05.1]} 21... Bc6 {[%clk 0:01:01.4]} 22. Nxc6
{[%clk 0:01:03.5]} 22... Nxc6 {[%clk 0:01:00.4]} 23. Rxd8+ {[%clk 0:00:57.8]}
23... Rxd8 {[%clk 0:01:01.3]} 24. h3 {[%clk 0:00:54.5]} 24... Rd2 {[%clk
0:00:59.1]} 25. Rf1 {[%clk 0:00:49.5]} 25... Ra2 {[%clk 0:00:58.7]} 26. Qd1
{[%clk 0:00:43.9]} 26... Rxa3 {[%clk 0:00:55.6]} 27. Qg4+ {[%clk 0:00:43.8]}
27... f5 {[%clk 0:00:50.5]} 28. Qxg7 {[%clk 0:00:44.7]} 28... Rd3 {[%clk
0:00:49.5]} 29. Qxh7 {[%clk 0:00:43.7]} 29... Rd7 {[%clk 0:00:48.5]} 30. Qg8+
{[%clk 0:00:42.2]} 30... Kc7 {[%clk 0:00:48.8]} 31. h4 {[%clk 0:00:42.4]} 31...
Rd8 {[%clk 0:00:44.5]} 32. Qg7+ {[%clk 0:00:39.1]} 32... Qe7 {[%clk 0:00:43.2]}
33. Qg3+ {[%clk 0:00:39.1]} 33... Qe5 {[%clk 0:00:38.7]} 34. Qf3 {[%clk
0:00:37.1]} 34... Nd4 {[%clk 0:00:37.7]} 35. Qh5 {[%clk 0:00:33.4]} 35... a5
{[%clk 0:00:33.1]} 36. Rb1 {[%clk 0:00:32.3]} 36... Rd7 {[%clk 0:00:26.6]} 37.
Qd1 {[%clk 0:00:26.7]} 37... Ne2+ {[%clk 0:00:25.8]} 0-1

[Event "*** Titled Tuesday Blitz"]
[Site "Chess.com"]
[Date "2020.11.24"]
[Round "3"]
[White "ChessWarrior3"]
[Black "JoachimMouhamad"]
[Result "0-1"]
[WhiteElo "2089"]
[BlackElo "2475"]
[TimeControl "180+1"]
[EndTime "10:44:23 PST"]
[Termination "JoachimMouhamad won on time"]

1. e4 {[%clk 0:03:00.9]} 1... e5 {[%clk 0:02:57.9]} 2. Nf3 {[%clk 0:02:58]} 2...
Nc6 {[%clk 0:02:57.9]} 3. Bb5 {[%clk 0:02:57]} 3... a6 {[%clk 0:02:58.2]} 4. Ba4
{[%clk 0:02:56.3]} 4... Nf6 {[%clk 0:02:57.8]} 5. O-O {[%clk 0:02:54]} 5... Be7
{[%clk 0:02:55.9]} 6. Re1 {[%clk 0:02:47.7]} 6... b5 {[%clk 0:02:55.6]} 7. Bb3
{[%clk 0:02:47.2]} 7... d6 {[%clk 0:02:56.4]} 8. c3 {[%clk 0:02:44.9]} 8... O-O
{[%clk 0:02:56]} 9. d4 {[%clk 0:02:44.5]} 9... Bg4 {[%clk 0:02:51.7]} 10. Be3
{[%clk 0:02:43.6]} 10... exd4 {[%clk 0:02:31.6]} 11. cxd4 {[%clk 0:02:41.9]}
11... d5 {[%clk 0:02:27.4]} 12. e5 {[%clk 0:02:31.6]} 12... Ne4 {[%clk
0:02:26.2]} 13. h3 {[%clk 0:02:31.6]} 13... Bh5 {[%clk 0:02:01.4]} 14. Bc2
{[%clk 0:02:20.4]} 14... Nb4 {[%clk 0:01:52.3]} 15. Nc3 {[%clk 0:02:12.6]} 15...
Nxc2 {[%clk 0:01:49.2]} 16. Qxc2 {[%clk 0:02:10.9]} 16... Bg6 {[%clk 0:01:35]}
17. Rac1 {[%clk 0:01:56.2]} 17... Nc5 {[%clk 0:01:25.3]} 18. Qd2 {[%clk
0:01:30.8]} 18... Nd3 {[%clk 0:01:24.8]} 19. a3 {[%clk 0:01:25.6]} 19... Rb8
{[%clk 0:01:19]} 20. b3 {[%clk 0:01:06]} 20... Nxc1 {[%clk 0:01:11]} 21. Rxc1
{[%clk 0:01:02.9]} 21... Bxa3 {[%clk 0:01:09.3]} 22. Ra1 {[%clk 0:00:58.3]}
22... Bb4 {[%clk 0:00:58.8]} 23. Rxa6 {[%clk 0:00:55.2]} 23... Ra8 {[%clk
0:00:56]} 24. Rxa8 {[%clk 0:00:40]} 24... Qxa8 {[%clk 0:00:56]} 25. Qb2 {[%clk
0:00:34.4]} 25... c6 {[%clk 0:00:53.1]} 26. e6 {[%clk 0:00:26.5]} 26... f6
{[%clk 0:00:36.5]} 27. Ne2 {[%clk 0:00:14.8]} 27... Re8 {[%clk 0:00:32.3]} 28.
Nf4 {[%clk 0:00:09.9]} 28... Qa3 {[%clk 0:00:31]} 29. Qxa3 {[%clk 0:00:06.6]}
29... Bxa3 {[%clk 0:00:31.9]} 30. Nh4 {[%clk 0:00:06.5]} 30... Bc2 {[%clk
0:00:29.2]} 0-1

[Event "*** Titled Tuesday Blitz"]
[Site "Chess.com"]
[Date "2020.11.24"]
[Round "3"]
[White "parintele_chess"]
[Black "boasovietica"]
[Result "1-0"]
[WhiteElo "2208"]
[BlackElo "2415"]
[TimeControl "180+1"]
[EndTime "10:44:25 PST"]
[Termination "parintele_chess won by resignation"]

1. c4 {[%clk 0:02:51.4]} 1... c5 {[%clk 0:02:58.4]} 2. g3 {[%clk 0:02:50.3]}
2... Nc6 {[%clk 0:02:58.3]} 3. Bg2 {[%clk 0:02:49.9]} 3... e5 {[%clk 0:02:58.7]}
4. Nc3 {[%clk 0:02:49]} 4... g6 {[%clk 0:02:58.8]} 5. a3 {[%clk 0:02:48.2]} 5...
a5 {[%clk 0:02:57.8]} 6. Rb1 {[%clk 0:02:47.6]} 6... Bg7 {[%clk 0:02:57.8]} 7.
d3 {[%clk 0:02:47.2]} 7... Nge7 {[%clk 0:02:57.2]} 8. e3 {[%clk 0:02:45]} 8...
d6 {[%clk 0:02:56.6]} 9. Nge2 {[%clk 0:02:43.9]} 9... O-O {[%clk 0:02:56.2]} 10.
O-O {[%clk 0:02:41.9]} 10... Rb8 {[%clk 0:02:56.3]} 11. Nd5 {[%clk 0:02:35.1]}
11... b5 {[%clk 0:02:44.5]} 12. cxb5 {[%clk 0:02:21]} 12... Rxb5 {[%clk
0:02:43.9]} 13. Nec3 {[%clk 0:02:21.2]} 13... Rb8 {[%clk 0:02:40.7]} 14. Nxe7+
{[%clk 0:02:05.6]} 14... Nxe7 {[%clk 0:02:40.1]} 15. Nd5 {[%clk 0:02:02.9]}
15... Bd7 {[%clk 0:02:27.2]} 16. Bd2 {[%clk 0:01:57.1]} 16... a4 {[%clk
0:02:20.9]} 17. b3 {[%clk 0:01:56.9]} 17... axb3 {[%clk 0:02:12.4]} 18. Rxb3
{[%clk 0:01:57.8]} 18... Rxb3 {[%clk 0:02:07.2]} 19. Qxb3 {[%clk 0:01:57.6]}
19... Be6 {[%clk 0:02:02.9]} 20. Nxe7+ {[%clk 0:01:57.5]} 20... Qxe7 {[%clk
0:02:03.1]} 21. Bd5 {[%clk 0:01:57.8]} 21... Bh3 {[%clk 0:01:48]} 22. Rb1 {[%clk
0:01:57.4]} 22... Kh8 {[%clk 0:01:47.3]} 23. Bg2 {[%clk 0:01:56.8]} 23... Bxg2
{[%clk 0:01:43]} 24. Kxg2 {[%clk 0:01:57.6]} 24... f5 {[%clk 0:01:43.2]} 25. Qd5
{[%clk 0:01:52.6]} 25... g5 {[%clk 0:01:40.5]} 26. Rb7 {[%clk 0:01:51.7]} 26...
Qf6 {[%clk 0:01:39.3]} 27. f4 {[%clk 0:01:47.2]} 27... exf4 {[%clk 0:01:32.8]}
28. exf4 {[%clk 0:01:42.6]} 28... g4 {[%clk 0:01:20.9]} 29. a4 {[%clk 0:01:40]}
29... Re8 {[%clk 0:01:20.3]} 30. Kf2 {[%clk 0:01:32.7]} 30... Qh6 {[%clk
0:01:07.7]} 31. Kg1 {[%clk 0:01:21.1]} 31... Bd4+ {[%clk 0:01:04.4]} 32. Kh1
{[%clk 0:01:19.8]} 32... Qh3 {[%clk 0:00:44.3]} 33. Rb1 {[%clk 0:00:50.8]} 33...
Kg7 {[%clk 0:00:30.9]} 34. Qxf5 {[%clk 0:00:46.1]} 34... Rb8 {[%clk 0:00:17.2]}
35. Qd7+ {[%clk 0:00:39.6]} 35... Kg6 {[%clk 0:00:12.1]} 36. Qxd6+ {[%clk
0:00:38.4]} 1-0

[Event "*** Titled Tuesday Blitz"]
[Site "Chess.com"]
[Date "2020.11.24"]
[Round "3"]
[White "KetiGrant"]
[Black "rugbyclub"]
[Result "1-0"]
[WhiteElo "2417"]
[BlackElo "2176"]
[TimeControl "180+1"]
[EndTime "10:44:25 PST"]
[Termination "KetiGrant won on time"]

1. e4 {[%clk 0:03:00.9]} 1... e6 {[%clk 0:03:00]} 2. d4 {[%clk 0:02:55.3]} 2...
d5 {[%clk 0:02:58.7]} 3. Nc3 {[%clk 0:02:55.3]} 3... Bb4 {[%clk 0:02:56.1]} 4.
e5 {[%clk 0:02:55.3]} 4... Ne7 {[%clk 0:02:54.8]} 5. a3 {[%clk 0:02:55.4]} 5...
Bxc3+ {[%clk 0:02:54.2]} 6. bxc3 {[%clk 0:02:56]} 6... b6 {[%clk 0:02:54.8]} 7.
a4 {[%clk 0:02:39.3]} 7... a5 {[%clk 0:02:41]} 8. Bb5+ {[%clk 0:02:31.3]} 8...
c6 {[%clk 0:02:39.9]} 9. Bd3 {[%clk 0:02:31]} 9... Ba6 {[%clk 0:02:39.7]} 10.
Ba3 {[%clk 0:02:25.7]} 10... Nd7 {[%clk 0:02:21.2]} 11. Nf3 {[%clk 0:02:23.5]}
11... Bxd3 {[%clk 0:02:16.4]} 12. Qxd3 {[%clk 0:02:21.6]} 12... O-O {[%clk
0:02:06.4]} 13. O-O {[%clk 0:02:20.7]} 13... c5 {[%clk 0:02:06.7]} 14. c4 {[%clk
0:02:19.3]} 14... Rc8 {[%clk 0:01:48.5]} 15. cxd5 {[%clk 0:02:02.5]} 15... Nxd5
{[%clk 0:01:41.6]} 16. c4 {[%clk 0:02:02.3]} 16... Nb4 {[%clk 0:01:37.1]} 17.
Bxb4 {[%clk 0:01:32.7]} 17... cxb4 {[%clk 0:01:32]} 18. d5 {[%clk 0:01:33.2]}
18... Nc5 {[%clk 0:01:31.6]} 19. Qd1 {[%clk 0:01:24.6]} 19... Qd7 {[%clk
0:01:21.9]} 20. d6 {[%clk 0:00:55.5]} 20... b3 {[%clk 0:00:52]} 21. Nd4 {[%clk
0:00:52.5]} 21... b2 {[%clk 0:00:49.4]} 22. Ra2 {[%clk 0:00:45.8]} 22... f6
{[%clk 0:00:49.5]} 23. f4 {[%clk 0:00:43.4]} 23... fxe5 {[%clk 0:00:42]} 24.
fxe5 {[%clk 0:00:42.8]} 24... Rxf1+ {[%clk 0:00:42.4]} 25. Kxf1 {[%clk
0:00:38.7]} 25... Ne4 {[%clk 0:00:34.3]} 26. Rxb2 {[%clk 0:00:35.8]} 26... Rxc4
{[%clk 0:00:29.9]} 27. Rxb6 {[%clk 0:00:27.4]} 27... Qf7+ {[%clk 0:00:29.6]} 28.
Nf3 {[%clk 0:00:25.9]} 28... g5 {[%clk 0:00:23.3]} 29. d7 {[%clk 0:00:23.4]} 1-0

[Event "*** Titled Tuesday Blitz"]
[Site "Chess.com"]
[Date "2020.11.24"]
[Round "3"]
[White "HouseOfDurin"]
[Black "mortngabriel"]
[Result "0-1"]
[WhiteElo "2123"]
[BlackElo "2351"]
[TimeControl "180+1"]
[EndTime "10:44:25 PST"]
[Termination "mortngabriel won on time"]

1. d4 {[%clk 0:03:00.9]} 1... Nf6 {[%clk 0:02:59.4]} 2. Bg5 {[%clk 0:03:01.3]}
2... d6 {[%clk 0:02:57.6]} 3. Bxf6 {[%clk 0:03:01]} 3... exf6 {[%clk 0:02:57.6]}
4. c4 {[%clk 0:03:01.6]} 4... d5 {[%clk 0:02:53.5]} 5. cxd5 {[%clk 0:02:57.9]}
5... Qxd5 {[%clk 0:02:54.4]} 6. Nc3 {[%clk 0:02:58.5]} 6... Bb4 {[%clk
0:02:52.7]} 7. e3 {[%clk 0:02:58.7]} 7... O-O {[%clk 0:02:48.1]} 8. Ne2 {[%clk
0:02:56.1]} 8... c5 {[%clk 0:02:41.1]} 9. dxc5 {[%clk 0:02:46.7]} 9... Qxc5
{[%clk 0:02:33.7]} 10. a3 {[%clk 0:02:42.5]} 10... Bxc3+ {[%clk 0:02:33.7]} 11.
Nxc3 {[%clk 0:02:43.4]} 11... Nc6 {[%clk 0:02:32]} 12. Be2 {[%clk 0:02:27.6]}
12... Rd8 {[%clk 0:02:29]} 13. Qa4 {[%clk 0:02:19.8]} 13... Be6 {[%clk
0:02:09.2]} 14. O-O {[%clk 0:02:16.5]} 14... Rd2 {[%clk 0:02:08]} 15. Ne4 {[%clk
0:02:03.3]} 15... Qc2 {[%clk 0:02:07.3]} 16. Qxc2 {[%clk 0:01:31.2]} 16... Rxc2
{[%clk 0:02:06.8]} 17. Bd3 {[%clk 0:01:27.7]} 17... Rxb2 {[%clk 0:02:06.2]} 18.
Rfb1 {[%clk 0:01:28.2]} 18... Rxb1+ {[%clk 0:02:04.1]} 19. Rxb1 {[%clk
0:01:29.1]} 19... b6 {[%clk 0:02:04]} 20. Ba6 {[%clk 0:01:00.1]} 20... Rd8
{[%clk 0:02:00.9]} 21. Bb7 {[%clk 0:00:52.7]} 21... Na5 {[%clk 0:01:55.3]} 22.
Ng3 {[%clk 0:00:41.9]} 22... Nxb7 {[%clk 0:01:53.7]} 23. Rc1 {[%clk 0:00:37.4]}
23... Nc5 {[%clk 0:01:53]} 24. h3 {[%clk 0:00:31.6]} 24... Rd3 {[%clk
0:01:50.9]} 25. a4 {[%clk 0:00:29.9]} 25... Ra3 {[%clk 0:01:50.3]} 26. Ne2
{[%clk 0:00:26.1]} 26... Rxa4 {[%clk 0:01:49.9]} 27. Nd4 {[%clk 0:00:26.7]}
27... g6 {[%clk 0:01:45.1]} 28. g4 {[%clk 0:00:23.1]} 28... Ra2 {[%clk 0:01:41]}
29. Kg2 {[%clk 0:00:18.4]} 29... Rxf2+ {[%clk 0:01:39.9]} 30. Kg3 {[%clk
0:00:16.7]} 30... Rb2 {[%clk 0:01:35.6]} 31. h4 {[%clk 0:00:14.7]} 31... a5
{[%clk 0:01:33.7]} 32. h5 {[%clk 0:00:14.1]} 32... g5 {[%clk 0:01:33.7]} 33. h6
{[%clk 0:00:13.3]} 33... a4 {[%clk 0:01:31.2]} 34. Rd1 {[%clk 0:00:05.7]} 34...
Rd2 {[%clk 0:01:27.1]} 35. Rb1 {[%clk 0:00:02.6]} 35... Nb3 {[%clk 0:01:26.3]}
36. Nxb3 {[%clk 0:00:01.1]} 36... axb3 {[%clk 0:01:24.7]} 37. Ra1 {[%clk
0:00:01.7]} 37... Kf8 {[%clk 0:01:11.7]} 38. Ra7 {[%clk 0:00:01.6]} 38... b2
{[%clk 0:01:10.8]} 39. Ra8+ {[%clk 0:00:02.3]} 39... Ke7 {[%clk 0:01:10.5]} 40.
Ra7+ {[%clk 0:00:03.2]} 40... Rd7 {[%clk 0:01:08.5]} 41. Ra6 {[%clk 0:00:03]}
41... b1=Q {[%clk 0:01:08.3]} 42. e4 {[%clk 0:00:03.3]} 42... Rd3+ {[%clk
0:01:07.2]} 43. Kf2 {[%clk 0:00:03]} 43... Qc2+ {[%clk 0:01:08.1]} 0-1

[Event "*** Titled Tuesday Blitz"]
[Site "Chess.com"]
[Date "2020.11.24"]
[Round "3"]
[White "pavelalexandru07"]
[Black "oykuince"]
[Result "1-0"]
[WhiteElo "2302"]
[BlackElo "1978"]
[TimeControl "180+1"]
[EndTime "10:44:25 PST"]
[Termination "pavelalexandru07 won by resignation"]

1. e4 {[%clk 0:03:00.9]} 1... c5 {[%clk 0:02:58.3]} 2. Nf3 {[%clk 0:03:00]} 2...
e6 {[%clk 0:02:58.5]} 3. d4 {[%clk 0:02:59.8]} 3... cxd4 {[%clk 0:02:59.4]} 4.
Nxd4 {[%clk 0:02:59.4]} 4... Nc6 {[%clk 0:02:59.5]} 5. c4 {[%clk 0:02:55.9]}
5... Nf6 {[%clk 0:02:56.8]} 6. Nc3 {[%clk 0:02:55.6]} 6... Bb4 {[%clk
0:02:55.3]} 7. Nxc6 {[%clk 0:02:55.6]} 7... bxc6 {[%clk 0:02:55.1]} 8. e5 {[%clk
0:02:52.8]} 8... Qa5 {[%clk 0:02:53.5]} 9. exf6 {[%clk 0:02:49.4]} 9... Bxc3+
{[%clk 0:02:27.1]} 10. bxc3 {[%clk 0:02:47.9]} 10... Qxc3+ {[%clk 0:02:26.4]}
11. Bd2 {[%clk 0:02:48]} 11... Qxf6 {[%clk 0:02:23.1]} 12. Be2 {[%clk
0:02:47.7]} 12... O-O {[%clk 0:02:17.1]} 13. O-O {[%clk 0:02:47.2]} 13... d5
{[%clk 0:02:16]} 14. cxd5 {[%clk 0:02:43.8]} 14... cxd5 {[%clk 0:02:15.7]} 15.
Bf3 {[%clk 0:02:42.2]} 15... Bd7 {[%clk 0:02:13.4]} 16. Rb1 {[%clk 0:02:38.8]}
16... Rfc8 {[%clk 0:02:10.5]} 17. Qb3 {[%clk 0:02:32.5]} 17... a6 {[%clk
0:02:02.5]} 18. Rfc1 {[%clk 0:02:27.2]} 18... Bb5 {[%clk 0:01:53.5]} 19. Rxc8+
{[%clk 0:02:18.3]} 19... Rxc8 {[%clk 0:01:50.3]} 20. a4 {[%clk 0:02:18.9]} 20...
Bc4 {[%clk 0:01:48.9]} 21. Qb7 {[%clk 0:02:14.7]} 21... Re8 {[%clk 0:01:27.6]}
22. Qb8 {[%clk 0:01:25.7]} 22... Rf8 {[%clk 0:01:04.5]} 23. Qf4 {[%clk
0:00:49.1]} 23... Qg6 {[%clk 0:00:56.7]} 24. Rb8 {[%clk 0:00:46.1]} 24... Qd3
{[%clk 0:00:16.2]} 25. Rxf8+ {[%clk 0:00:37.8]} 25... Kxf8 {[%clk 0:00:15.4]}
26. Bb4+ {[%clk 0:00:28.2]} 26... Ke8 {[%clk 0:00:14.8]} 27. Qb8+ {[%clk
0:00:21.3]} 27... Kd7 {[%clk 0:00:14.9]} 28. Qb7+ {[%clk 0:00:17.1]} 28... Kd8
{[%clk 0:00:14.7]} 29. Ba5+ {[%clk 0:00:15.3]} 1-0

[Event "*** Titled Tuesday Blitz"]
[Site "Chess.com"]
[Date "2020.11.24"]
[Round "3"]
[White "chenxiaoyuer"]
[Black "Ladislav1969"]
[Result "0-1"]
[WhiteElo "2505"]
[BlackElo "2351"]
[TimeControl "180+1"]
[EndTime "10:44:26 PST"]
[Termination "Ladislav1969 won by resignation"]

1. e4 {[%clk 0:03:00.9]} 1... c5 {[%clk 0:02:59.1]} 2. Nf3 {[%clk 0:03:00.7]}
2... e6 {[%clk 0:03:00]} 3. d4 {[%clk 0:03:00.7]} 3... cxd4 {[%clk 0:03:00.9]}
4. Nxd4 {[%clk 0:03:01.6]} 4... a6 {[%clk 0:03:01.4]} 5. Nc3 {[%clk 0:03:01.7]}
5... b5 {[%clk 0:03:01.5]} 6. Bd3 {[%clk 0:03:00.5]} 6... Nc6 {[%clk 0:02:59.7]}
7. Nxc6 {[%clk 0:02:53.5]} 7... dxc6 {[%clk 0:02:59.8]} 8. O-O {[%clk
0:02:54.1]} 8... e5 {[%clk 0:02:59.9]} 9. a4 {[%clk 0:02:50.6]} 9... b4 {[%clk
0:02:58.3]} 10. Nb1 {[%clk 0:02:46.2]} 10... Nf6 {[%clk 0:02:57.3]} 11. Nd2
{[%clk 0:02:38.3]} 11... Bc5 {[%clk 0:02:51.7]} 12. Nc4 {[%clk 0:02:31.6]} 12...
Qc7 {[%clk 0:02:36.8]} 13. Be3 {[%clk 0:02:07.3]} 13... Bxe3 {[%clk 0:02:35.5]}
14. Nxe3 {[%clk 0:02:08.2]} 14... O-O {[%clk 0:02:34.8]} 15. Qe2 {[%clk
0:02:05.5]} 15... a5 {[%clk 0:02:34.7]} 16. Rad1 {[%clk 0:01:56.6]} 16... Be6
{[%clk 0:02:34.5]} 17. Bc4 {[%clk 0:01:36.4]} 17... Rfe8 {[%clk 0:02:33.9]} 18.
Bxe6 {[%clk 0:01:32.9]} 18... Rxe6 {[%clk 0:02:33.8]} 19. Nc4 {[%clk 0:01:23.6]}
19... Nd7 {[%clk 0:02:30]} 20. Rd2 {[%clk 0:01:21.2]} 20... Nc5 {[%clk
0:02:27.3]} 21. Rfd1 {[%clk 0:01:08.2]} 21... Nxa4 {[%clk 0:02:16.5]} 22. Rd7
{[%clk 0:01:05.3]} 22... Qb8 {[%clk 0:02:09.4]} 23. Qh5 {[%clk 0:00:37.5]} 23...
g6 {[%clk 0:02:06.3]} 24. Qf3 {[%clk 0:00:36.8]} 24... Qf8 {[%clk 0:01:59.3]}
25. Rc7 {[%clk 0:00:34.1]} 25... Rae8 {[%clk 0:01:51.6]} 26. Rdd7 {[%clk
0:00:33.6]} 26... R8e7 {[%clk 0:01:48.7]} 27. Rxe7 {[%clk 0:00:26.9]} 27... Rxe7
{[%clk 0:01:48.2]} 28. Rxc6 {[%clk 0:00:26.7]} 28... Qd8 {[%clk 0:01:42.2]} 29.
h3 {[%clk 0:00:23.9]} 29... Qe8 {[%clk 0:01:21.8]} 30. Rd6 {[%clk 0:00:17.9]}
30... Nc5 {[%clk 0:01:20.6]} 31. Qd1 {[%clk 0:00:15.3]} 31... Kg7 {[%clk
0:01:18.1]} 32. Qd5 {[%clk 0:00:14.8]} 32... Nb7 {[%clk 0:01:11.7]} 33. Rb6
{[%clk 0:00:13.6]} 33... Qc8 {[%clk 0:01:02.8]} 34. Kh2 {[%clk 0:00:11.4]} 34...
Nd8 {[%clk 0:00:56.2]} 35. Nxe5 {[%clk 0:00:08.7]} 35... Qc7 {[%clk 0:00:56]}
36. Rd6 {[%clk 0:00:08.4]} 36... Nb7 {[%clk 0:00:40.5]} 37. Qc6 {[%clk
0:00:03.4]} 37... Qxd6 {[%clk 0:00:39.4]} 38. Qxd6 {[%clk 0:00:02.1]} 38... Nxd6
{[%clk 0:00:39.4]} 0-1

[Event "*** Titled Tuesday Blitz"]
[Site "Chess.com"]
[Date "2020.11.24"]
[Round "3"]
[White "Grieve72"]
[Black "Iskusnyh"]
[Result "1/2-1/2"]
[WhiteElo "2415"]
[BlackElo "2576"]
[TimeControl "180+1"]
[EndTime "10:44:28 PST"]
[Termination "Game drawn by repetition"]

1. d4 {[%clk 0:03:00.9]} 1... d5 {[%clk 0:02:59.5]} 2. Bg5 {[%clk 0:02:58.7]}
2... h6 {[%clk 0:02:57.8]} 3. Bh4 {[%clk 0:02:58.5]} 3... c5 {[%clk 0:02:58.3]}
4. dxc5 {[%clk 0:02:59]} 4... g5 {[%clk 0:02:57.7]} 5. Bg3 {[%clk 0:02:59.3]}
5... Bg7 {[%clk 0:02:58.3]} 6. c3 {[%clk 0:02:59]} 6... Nc6 {[%clk 0:02:58.1]}
7. Nf3 {[%clk 0:02:48.9]} 7... e5 {[%clk 0:02:55]} 8. e4 {[%clk 0:02:41.5]} 8...
dxe4 {[%clk 0:02:45.2]} 9. Nfd2 {[%clk 0:02:22.8]} 9... Nf6 {[%clk 0:02:13.1]}
10. h4 {[%clk 0:02:05.3]} 10... g4 {[%clk 0:02:02.2]} 11. Bc4 {[%clk 0:01:52.6]}
11... O-O {[%clk 0:01:59.5]} 12. Qe2 {[%clk 0:01:44.8]} 12... Bf5 {[%clk
0:01:52.2]} 13. b4 {[%clk 0:01:29.7]} 13... Nh5 {[%clk 0:01:38.6]} 14. O-O
{[%clk 0:01:07.4]} 14... Nf4 {[%clk 0:01:28.3]} 15. Qe3 {[%clk 0:00:56.3]} 15...
Nd5 {[%clk 0:01:21.4]} 16. Qe2 {[%clk 0:00:45]} 16... Nf4 {[%clk 0:00:45.6]} 17.
Qe3 {[%clk 0:00:44]} 17... Kh8 {[%clk 0:00:40.3]} 18. Nxe4 {[%clk 0:00:21.1]}
18... Bxe4 {[%clk 0:00:38.7]} 19. Qxe4 {[%clk 0:00:22]} 19... f5 {[%clk
0:00:38.7]} 20. Qc2 {[%clk 0:00:15.1]} 20... Nh5 {[%clk 0:00:35.7]} 21. Nd2
{[%clk 0:00:06.2]} 21... f4 {[%clk 0:00:34.6]} 22. Qg6 {[%clk 0:00:05.5]} 22...
Nxg3 {[%clk 0:00:19.8]} 23. fxg3 {[%clk 0:00:05.2]} 23... Qxd2 {[%clk
0:00:15.5]} 24. Bd3 {[%clk 0:00:05.1]} 24... Kg8 {[%clk 0:00:13.7]} 25. Bc4+
{[%clk 0:00:05]} 25... Kh8 {[%clk 0:00:13.4]} 26. Bd3 {[%clk 0:00:05.5]} 26...
Kg8 {[%clk 0:00:13.9]} 27. Bc4+ {[%clk 0:00:05.3]} 27... Kh8 {[%clk 0:00:14]}
1/2-1/2

[Event "*** Titled Tuesday Blitz"]
[Site "Chess.com"]
[Date "2020.11.24"]
[Round "3"]
[White "DanielNaroditsky"]
[Black "NikolaGry"]
[Result "0-1"]
[WhiteElo "3013"]
[BlackElo "2735"]
[TimeControl "180+1"]
[EndTime "10:44:29 PST"]
[Termination "NikolaGry won by checkmate"]

1. b3 {[%clk 0:03:00.9]} 1... d5 {[%clk 0:02:58.5]} 2. Bb2 {[%clk 0:02:55.5]}
2... Bg4 {[%clk 0:02:58]} 3. h3 {[%clk 0:02:54.6]} 3... Bh5 {[%clk 0:02:57.7]}
4. g4 {[%clk 0:02:54.8]} 4... Bg6 {[%clk 0:02:57.6]} 5. Bg2 {[%clk 0:02:55.7]}
5... e6 {[%clk 0:02:53]} 6. Nf3 {[%clk 0:02:55.7]} 6... Nd7 {[%clk 0:02:50.6]}
7. c4 {[%clk 0:02:55.4]} 7... c6 {[%clk 0:02:49.8]} 8. d3 {[%clk 0:02:55.5]}
8... Bb4+ {[%clk 0:02:36.9]} 9. Nbd2 {[%clk 0:02:55.8]} 9... Ngf6 {[%clk
0:02:36.5]} 10. a3 {[%clk 0:02:56]} 10... Be7 {[%clk 0:02:34.1]} 11. h4 {[%clk
0:02:52.6]} 11... Nxg4 {[%clk 0:02:04.9]} 12. h5 {[%clk 0:02:51.7]} 12... Bf5
{[%clk 0:02:04.9]} 13. e4 {[%clk 0:02:52.1]} 13... dxe4 {[%clk 0:01:54.6]} 14.
dxe4 {[%clk 0:02:53]} 14... Nc5 {[%clk 0:01:53.9]} 15. exf5 {[%clk 0:02:18.7]}
15... Nd3+ {[%clk 0:01:38.8]} 16. Kf1 {[%clk 0:02:18.9]} 16... Ngxf2 {[%clk
0:01:34.2]} 17. Qe2 {[%clk 0:02:17.9]} 17... Nxh1 {[%clk 0:01:32.6]} 18. Bxh1
{[%clk 0:02:18.7]} 18... Nxb2 {[%clk 0:01:29.1]} 19. h6 {[%clk 0:02:15.3]} 19...
gxh6 {[%clk 0:01:25.6]} 20. fxe6 {[%clk 0:02:13.7]} 20... fxe6 {[%clk
0:01:16.2]} 21. Ne5 {[%clk 0:02:06.2]} 21... Rf8+ {[%clk 0:00:56.8]} 22. Kg2
{[%clk 0:02:05.4]} 22... Rf5 {[%clk 0:00:52.8]} 23. Ndf3 {[%clk 0:02:05.5]}
23... Bf6 {[%clk 0:00:51.2]} 24. Ng4 {[%clk 0:01:52.4]} 24... Qe7 {[%clk
0:00:42.4]} 25. Rb1 {[%clk 0:01:10.6]} 25... Rd8 {[%clk 0:00:35.7]} 26. Rxb2
{[%clk 0:01:01.6]} 26... Bxb2 {[%clk 0:00:34.7]} 27. Qxb2 {[%clk 0:01:02.5]}
27... e5 {[%clk 0:00:27]} 28. Qc2 {[%clk 0:00:57]} 28... e4 {[%clk 0:00:24.6]}
29. Nfh2 {[%clk 0:00:41.5]} 29... Rf4 {[%clk 0:00:20.3]} 30. Qc3 {[%clk
0:00:40.5]} 30... Qg5 {[%clk 0:00:18.6]} 31. Qh8+ {[%clk 0:00:40.8]} 31... Rf8
{[%clk 0:00:18.5]} 32. Qxh7 {[%clk 0:00:40.4]} 32... Rd2+ {[%clk 0:00:17.2]} 33.
Kg3 {[%clk 0:00:39.2]} 33... Qf4+ {[%clk 0:00:16.6]} 34. Kh3 {[%clk 0:00:37.9]}
34... Rd3+ {[%clk 0:00:16.2]} 35. Kg2 {[%clk 0:00:19.8]} 35... Rg3# {[%clk
0:00:13.7]} 0-1